fUSD/lending_fUSD_20240611
["ID","MTS","AMOUNT","RATE_DAILY","PERIOD"]
[329113737,1718115048000,-600.19,0.00023931,2]
[329113738,1718115048023,-175.57491196,0.00023988,2]
[329113739,1718115048038,-617.03764504,0.00024,2]
[329113740,1718115048076,-515.92305803,0.00024,2]
[329113741,1718115048107,-3000.0,0.00024,2]
[329113742,1718115048124,-1620.0,0.00024,2]
[329113743,1718115048149,-180.0,0.0002423,2]
[329113744,1718115048164,-158.65,0.00024384,2]
[329113745,1718115048180,-236.84,0.00024384,2]
[329113746,1718115048197,-161.5,0.00024384,2]
[329113747,1718115048211,-150.0,0.00024384,2]
[329113748,1718115048228,-150.0,0.00024384,2]
[329113749,1718115048242,-150.0,0.00024384,2]
[329113750,1718115048252,-310.12134563,0.00024408,2]
[329113751,1718115048261,-219.65,0.00024493,4]
[329113752,1718115048274,-12580.72738694,0.00024497,2]
[329113753,1718115048285,-5916.969507,0.000245,2]
[329113754,1718115048296,-1600.0,0.000245,8]
[329113755,1718115048306,-500.0,0.00024528,2]
[329113756,1718115048316,-500.0,0.00024534,2]
[329113757,1718115048326,-500.0,0.00024534,2]
[329113758,1718115048337,-500.0,0.00024534,2]
[329113759,1718115048350,-500.0,0.00024534,2]
[329113760,1718115048361,-500.0,0.00024534,2]
[329113761,1718115048386,-356.7026,0.00024534,2]
[329113762,1718115048396,-1000.0,0.00024534,2]
[329113763,1718115048406,-1000.0,0.00024534,2]
[329113764,1718115048421,-1000.0,0.00024534,2]
[329113765,1718115048441,-1000.0,0.00024534,2]
[329113766,1718115048452,-1000.0,0.00024534,2]
[329113767,1718115048463,-1000.0,0.00024534,2]
[329113768,1718115048483,-1000.0,0.00024534,2]
[329113769,1718115048493,-1000.0,0.00024534,2]
[329113770,1718115048509,-1000.0,0.00024534,2]
[329113771,1718115048520,-1000.0,0.00024534,2]
[329113772,1718115048535,-481.3482,0.00024534,2]
[329113773,1718115048549,-1878.28068253,0.00024555,2]
[329113774,1718115048560,-442.608251,0.00024594,2]
[329113775,1718115048570,-1751.105779,0.00024594,2]
[329113776,1718115048581,-1789.86,0.00024594,2]
[329113777,1718115048591,-200.0,0.00024596,2]
[329113778,1718115048601,-1000.0,0.00024596,2]
[329113779,1718115048613,-500.0,0.00024596,2]
[329113780,1718115048623,-200.0,0.00024596,2]
[329113781,1718115048633,-489.0,0.000246,8]
[329113782,1718115048643,-315.0,0.000246,2]
[329113783,1718115048652,-2000.0,0.000246,8]
[329113784,1718115048663,-190.0,0.000246,8]
[329113785,1718115048673,-150.0,0.000246,4]
[329113786,1718115048683,-142924.26152497,0.00024646,3]
[329113787,1718115048696,-839.5235443,0.00024646,2]
[329113788,1718115048706,-535.4136453,0.00024646,2]
[329113789,1718115048716,-38883.6658989,0.00024646,2]
[329113790,1718115048728,-761569.11752063,0.00024653,5]
[329113791,1718115048739,-156.81038871,0.00024655,2]
[329113792,1718115048752,-308.94274629,0.00024655,2]
[329113793,1718115048763,-4138.37015852,0.00024655,2]
[329113794,1718115048773,-620.85973177,0.00024655,2]
[329113795,1718115048784,-155.0,0.00024655,2]
[329113796,1718115048801,-1010.86316582,0.00024655,2]
[329113797,1718115048825,-1511.24231322,0.00024655,2]
[329113798,1718115048840,-295.51032432,0.00024655,2]
[329113799,1718115048851,-5302.97258211,0.00024655,2]
[329113800,1718115048866,-34798.490801,0.00024655,2]
[329113801,1718115048881,-481.85167187,0.00024656,2]
[329113802,1718115048897,-208.72501019,0.00024656,2]
[329113803,1718115048908,-5896.54113375,0.00024656,2]
[329113804,1718115048922,-150.0,0.00024656,10]
[329113805,1718115048937,-150.0,0.00024656,10]
[329113806,1718115048959,-150.0,0.00024656,10]
[329113807,1718115048974,-150.0,0.00024656,10]
[329113808,1718115048991,-150.0,0.00024656,10]
[329113809,1718115049022,-150.0,0.00024656,10]
[329113810,1718115049034,-71322.64,0.00024657,2]
[329113811,1718115049045,-358.30257199,0.00024657,2]
[329113812,1718115049056,-500.0,0.00024657,2]
[329113813,1718115049066,-500.0,0.00024657,2]
[329113814,1718115049078,-151.0,0.00024657,7]
[329113815,1718115049093,-500.0,0.00024657,2]
[329113816,1718115049104,-500.0,0.00024657,2]
[329113817,1718115049118,-500.0,0.00024657,2]
[329113818,1718115049130,-500.0,0.00024657,2]
[329113819,1718115049142,-500.0,0.00024657,2]
[329113820,1718115049154,-500.0,0.00024657,2]
[329113821,1718115049166,-500.0,0.00024657,2]
[329113822,1718115049178,-500.0,0.00024657,2]
[329113823,1718115049191,-500.0,0.00024657,2]
[329113824,1718115049226,-500.0,0.00024657,2]
[329113825,1718115049236,-500.0,0.00024657,2]
[329113826,1718115049247,-533.35,0.00024657,2]
[329113827,1718115049257,-151.0,0.00024657,7]
[329113828,1718115049269,-500.0,0.00024657,2]
[329113829,1718115049289,-500.0,0.00024657,2]
[329113830,1718115049300,-500.0,0.00024657,2]
[329113831,1718115049312,-500.0,0.00024657,2]
[329113832,1718115049331,-500.0,0.00024657,2]
[329113833,1718115049343,-500.0,0.00024657,2]
[329113834,1718115049356,-500.0,0.00024657,2]
[329113835,1718115049377,-547.27,0.00024657,2]
[329113836,1718115049390,-500.0,0.00024657,2]
[329113837,1718115049402,-500.0,0.00024657,2]
[329113838,1718115049413,-500.0,0.00024657,2]
[329113839,1718115049426,-524.59,0.00024657,2]
[329113840,1718115049448,-500.0,0.00024657,2]
[329113841,1718115049458,-500.0,0.00024657,2]
[329113842,1718115049469,-500.0,0.00024657,2]
[329113843,1718115049481,-514.00145479,0.00024657,2]
[329113844,1718115049497,-500.0,0.00024657,2]
[329113845,1718115049519,-500.0,0.00024657,2]
[329113846,1718115049531,-579.22,0.00024657,2]
[329113847,1718115049543,-500.0,0.00024657,2]
[329113848,1718115049557,-500.0,0.00024657,2]
[329113849,1718115049570,-500.0,0.00024657,2]
[329113850,1718115049581,-500.0,0.00024657,2]
[329113851,1718115049594,-151.0,0.00024657,7]
[329113852,1718115049609,-500.0,0.00024657,2]
[329113853,1718115049620,-500.0,0.00024657,2]
[329113854,1718115049631,-151.0,0.00024657,7]
[329113855,1718115049642,-500.0,0.00024657,2]
[329113856,1718115049655,-586.19,0.00024657,2]
[329113857,1718115049669,-500.0,0.00024657,2]
[329113858,1718115049684,-500.0,0.00024657,2]
[329113859,1718115049705,-500.0,0.00024657,2]
[329113860,1718115049720,-500.0,0.00024657,2]
[329113861,1718115049738,-500.0,0.00024657,2]
[329113862,1718115049764,-500.0,0.00024657,2]
[329113863,1718115049778,-500.0,0.00024657,2]
[329113864,1718115049811,-533.14633417,0.00024657,2]
[329113865,1718115049853,-500.0,0.00024657,2]
[329113866,1718115049871,-500.0,0.00024657,2]
[329113867,1718115049894,-531.43015766,0.00024657,2]
[329113868,1718115049928,-500.0,0.00024657,2]
[329113869,1718115049947,-500.0,0.00024657,2]
[329113870,1718115049958,-500.0,0.00024657,2]
[329113871,1718115049969,-500.0,0.00024657,2]
[329113872,1718115049979,-511.11722874,0.00024657,2]
[329113873,1718115049989,-500.0,0.00024657,2]
[329113874,1718115050006,-500.0,0.00024657,2]
[329113875,1718115050020,-833.83,0.00024657,2]
[329113876,1718115050042,-500.0,0.00024657,2]
[329113877,1718115050061,-500.0,0.00024657,2]
[329113878,1718115050073,-228.80492491,0.00024657,2]
[329113879,1718115050102,-500.0,0.00024657,2]
[329113880,1718115050115,-562.54135572,0.00024657,2]
[329113881,1718115050127,-500.0,0.00024657,2]
[329113882,1718115050139,-577.59108478,0.00024657,2]
[329113883,1718115050151,-500.0,0.00024657,2]
[329113884,1718115050163,-361.42500486,0.00024657,2]
[329113885,1718115050180,-500.0,0.00024657,2]
[329113886,1718115050197,-517.21931981,0.00024657,2]
[329113887,1718115050211,-500.0,0.00024657,2]
[329113888,1718115050230,-500.0,0.00024657,2]
[329113889,1718115050243,-500.0,0.00024657,2]
[329113890,1718115050271,-500.0,0.00024657,2]
[329113891,1718115050286,-500.0,0.00024657,2]
[329113892,1718115050311,-546.35,0.00024657,2]
[329113893,1718115050333,-365.07921508,0.00024657,2]
[329113894,1718115050346,-500.0,0.00024657,2]
[329113895,1718115050370,-500.0,0.00024657,2]
[329113896,1718115050384,-1231.32,0.00024657,2]
[329113897,1718115050398,-500.0,0.00024657,2]
[329113898,1718115050409,-500.0,0.00024657,2]
[329113899,1718115050425,-548.77,0.00024657,2]
[329113900,1718115050451,-500.0,0.00024657,2]
[329113901,1718115050462,-500.0,0.00024657,2]
[329113902,1718115050481,-500.0,0.00024657,2]
[329113903,1718115050516,-519.21783552,0.00024657,2]
[329113904,1718115050543,-500.0,0.00024657,2]
[329113905,1718115050578,-151.0,0.00024657,7]
[329113906,1718115050597,-500.0,0.00024657,2]
[329113907,1718115050610,-500.0,0.00024657,2]
[329113908,1718115050624,-500.0,0.00024657,2]
[329113909,1718115050640,-500.0,0.00024657,2]
[329113910,1718115050672,-500.0,0.00024657,2]
[329113911,1718115050695,-500.0,0.00024657,2]
[329113912,1718115050720,-500.0,0.00024657,2]
[329113913,1718115050758,-500.0,0.00024657,2]
[329113914,1718115050776,-500.0,0.00024657,2]
[329113915,1718115050800,-500.0,0.00024657,2]
[329113916,1718115050812,-500.0,0.00024657,2]
[329113917,1718115050832,-500.0,0.00024657,2]
[329113918,1718115050850,-500.0,0.00024657,2]
[329113919,1718115050862,-500.0,0.00024657,2]
[329113920,1718115050875,-500.0,0.00024657,2]
[329113921,1718115050885,-755.32,0.00024657,2]
[329113922,1718115050897,-500.0,0.00024657,2]
[329113923,1718115050908,-168.694278,0.00024657,7]
[329113924,1718115050921,-151.0,0.00024657,7]
[329113925,1718115050932,-500.0,0.00024657,2]
[329113926,1718115050946,-726.32,0.00024657,2]
[329113927,1718115050956,-500.0,0.00024657,2]
[329113928,1718115050968,-500.0,0.00024657,2]
[329113929,1718115050980,-531.89228212,0.00024657,2]
[329113930,1718115050991,-500.0,0.00024657,2]
[329113931,1718115051001,-500.0,0.00024657,2]
[329113932,1718115051012,-698.79,0.00024657,2]
[329113933,1718115051024,-500.0,0.00024657,2]
[329113934,1718115051035,-647.07,0.00024657,2]
[329113935,1718115051046,-500.0,0.00024657,2]
[329113936,1718115051059,-500.0,0.00024657,2]
[329113937,1718115051070,-602.18966539,0.00024657,2]
[329113938,1718115051290,-500.0,0.00024657,2]
[329113939,1718115051301,-500.0,0.00024657,2]
[329113940,1718115051313,-536.49,0.00024657,2]
[329113941,1718115051324,-500.0,0.00024657,2]
[329113942,1718115051335,-500.0,0.00024657,2]
[329113943,1718115051346,-500.0,0.00024657,2]
[329113944,1718115051357,-222.99617059,0.00024657,2]
[329113945,1718115051368,-500.0,0.00024657,2]
[329113946,1718115051380,-500.0,0.00024657,2]
[329113947,1718115051391,-564.6,0.00024657,2]
[329113948,1718115051401,-500.0,0.00024657,2]
[329113949,1718115051411,-500.0,0.00024657,2]
[329113950,1718115051422,-500.0,0.00024657,2]
[329113951,1718115051432,-407.04596909,0.00024657,2]
[329113952,1718115051446,-500.0,0.00024657,2]
[329113953,1718115051457,-648.22,0.00024657,2]
[329113954,1718115051472,-544.67768389,0.00024657,2]
[329113955,1718115051482,-500.0,0.00024657,2]
[329113956,1718115051494,-500.0,0.00024657,2]
[329113957,1718115051525,-500.0,0.00024657,2]
[329113958,1718115051537,-480.90972067,0.00024657,2]
[329113959,1718115051548,-514.22,0.00024657,2]
[329113960,1718115051559,-939.34,0.00024657,2]
[329113961,1718115051570,-500.0,0.00024657,2]
[329113962,1718115051582,-500.0,0.00024657,2]
[329113963,1718115051595,-565.09,0.00024657,2]
[329113964,1718115051606,-631.10005991,0.00024657,2]
[329113965,1718115051617,-500.0,0.00024657,2]
[329113966,1718115051628,-500.0,0.00024657,2]
[329113967,1718115051639,-561.41,0.00024657,2]
[329113968,1718115051650,-500.0,0.00024657,2]
[329113969,1718115051662,-1869.18,0.00024657,2]
[329113970,1718115051673,-500.0,0.00024657,2]
[329113971,1718115051684,-514.57839804,0.00024657,2]
[329113972,1718115051698,-500.0,0.00024657,2]
[329113973,1718115051708,-500.0,0.00024657,2]
[329113974,1718115051718,-535.54562882,0.00024657,2]
[329113975,1718115051730,-504.05441958,0.00024657,2]
[329113976,1718115051740,-503.61002611,0.00024657,2]
[329113977,1718115051751,-151.0,0.00024657,7]
[329113978,1718115051762,-500.0,0.00024657,2]
[329113979,1718115051772,-642.98,0.00024657,2]
[329113980,1718115051786,-500.0,0.00024657,2]
[329113981,1718115051797,-193.55271432,0.00024657,2]
[329113982,1718115053138,-306.44728568,0.00024657,2]
[329113983,1718115053153,-501.27744588,0.00024657,2]
[329113984,1718115053169,-882.1746128,0.00024657,2]
[329113985,1718115053385,-15.49794132,0.00024657,2]
[329113986,1718115053402,-1173.07,0.00024657,2]
[329113987,1718115053422,-500.0,0.00024657,2]
[329113988,1718115053433,-500.0,0.00024657,2]
[329113989,1718115053456,-500.0,0.00024657,2]
[329113990,1718115053469,-500.0,0.00024657,2]
[329113991,1718115053491,-197.05658171,0.00024657,2]
[329113992,1718115053521,-302.94341829,0.00024657,2]
[329113993,1718115053531,-287.87538536,0.00024657,2]
[329113994,1718115053544,-500.0,0.00024657,2]
[329113995,1718115053564,-500.0,0.00024657,2]
[329113996,1718115053580,-500.0,0.00024657,2]
[329113997,1718115053596,-500.0,0.00024657,2]
[329113998,1718115053611,-775.25,0.00024657,2]
[329113999,1718115053631,-159.02106407,0.00024657,2]
[329114000,1718115057936,-317.08,0.00017259,2]
[329114001,1718115057954,-119.3105071,0.00017259,2]
[329114002,1718115057969,-988.28434946,0.00020687,2]
[329114003,1718115057980,-552.0,0.00021338,2]
[329114004,1718115058007,-947.59496628,0.00022114,2]
[329114005,1718115058026,-40.68938318,0.00022114,2]
[329114006,1718115058040,-333.70942051,0.00024655,2]
[329114007,1718115058056,-268.32530534,0.00024655,2]
[329114008,1718115058068,-338.62209965,0.00024656,2]
[329114009,1718115058079,-3248.25376683,0.00024656,2]
[329114010,1718115058100,-131.83255056,0.00024656,2]
[329114011,1718115058119,-340.97893593,0.00024657,2]
[329114012,1718115058141,-500.0,0.00024657,2]
[329114013,1718115058153,-165.29622256,0.00024657,2]
[329114017,1718115058403,-246.59143073,0.00024644,2]
[329114018,1718115058414,-334.70377744,0.00024657,2]
[329114019,1718115058429,-500.0,0.00024657,2]
[329114020,1718115058442,-500.0,0.00024657,2]
[329114021,1718115058462,-500.0,0.00024657,2]
[329114022,1718115058476,-500.0,0.00024657,2]
[329114023,1718115058488,-500.0,0.00024657,2]
[329114024,1718115058499,-664.4,0.00024657,2]
[329114025,1718115058521,-403.27366081,0.00024657,2]
[329114026,1718115058538,-1285.28,0.00024657,2]
[329114027,1718115058552,-500.0,0.00024657,2]
[329114028,1718115058567,-500.0,0.00024657,2]
[329114029,1718115058577,-245.75113102,0.00024657,2]
[329114030,1718115059855,-258.15886898,0.00024657,2]
[329114031,1718115059868,-514.26,0.00024657,2]
[329114032,1718115059887,-500.0,0.00024657,2]
[329114033,1718115059906,-500.0,0.00024657,2]
[329114034,1718115059923,-1688.32,0.00024657,2]
[329114035,1718115059944,-500.0,0.00024657,2]
[329114036,1718115059963,-347.01192578,0.00024657,2]
[329114037,1718115059982,-500.0,0.00024657,2]
[329114038,1718115060012,-500.0,0.00024657,2]
[329114039,1718115060036,-500.0,0.00024657,2]
[329114040,1718115060054,-466.99897378,0.00024657,2]
[329114041,1718115060067,-635.45,0.00024657,2]
[329114042,1718115060081,-500.0,0.00024657,2]
[329114043,1718115060096,-559.01015135,0.00024657,2]
[329114044,1718115060127,-500.0,0.00024657,2]
[329114045,1718115060149,-356.55152254,0.00024657,2]
[329114046,1718115687029,1000.0,0.000276,120]
[329114047,1718115762008,-241.67696198,0.0001306,2]
[329114048,1718115762035,-971.753933,0.00013061,2]
[329114049,1718115762062,-215.85,0.00013063,2]
[329114050,1718115772901,-197.46491077,0.000144,2]
[329114051,1718115772927,-9222.56534114,0.00014499,2]
[329114052,1718115772954,-1101.24045417,0.000145,2]
[329114053,1718115772982,-300.0,0.00014594,2]
[329114054,1718115773010,-150.0,0.00014596,2]
[329114055,1718115773035,-150.0,0.00014596,2]
[329114056,1718115773060,-2303.24675623,0.00014602,2]
[329114057,1718115773085,-197.46491076,0.000147,2]
[329114058,1718115773110,-2666.08,0.000148,2]
[329114059,1718115773136,-155.83930457,0.00014899,2]
[329114060,1718115773160,-512.67403173,0.00014899,2]
[329114061,1718115773185,-625.97046574,0.00014899,2]
[329114062,1718115773210,-6579.21078621,0.000149,2]
[329114063,1718115773236,-24408.9621437,0.000149,2]
[329114064,1718115794106,-241.35294466,0.00014898,2]
[329114065,1718115794138,-9758.64705534,0.000149,2]
[329114066,1718115807575,-5000.0,0.000149,2]
[329114067,1718116028179,-163.35651482,0.00014725,2]
[329114068,1718116036192,-2231.41476899,0.00014725,2]
[329114069,1718116050294,-1332.95769819,0.00014725,2]
[329114070,1718116050319,-3514.49628704,0.000148,2]
[329114076,1718116233996,-7593.45263347,0.00014699,2]
[329114077,1718116234008,-946.99769836,0.000147,2]
[329114078,1718116234023,-930.36043438,0.00014724,2]
[329114080,1718116234041,-300.0,0.00014799,2]
[329114083,1718116234052,-232.92231296,0.000148,2]
[329114085,1718116234065,-24666.92887897,0.000148,2]
[329114087,1718116234076,-3198.72482531,0.000149,2]
[329114091,1718116234654,-3810.50001624,0.000149,2]
[329114094,1718116234667,-7028.89931554,0.000149,2]
[329114096,1718116234681,-519.29227145,0.000149,2]
[329114098,1718116234694,-16334.5792354,0.000149,2]
[329114100,1718116234704,-161.04,0.00016376,2]
[329114102,1718116234717,-2085.0,0.000186,2]
[329114104,1718116234728,-702.0,0.000186,2]
[329114106,1718116234740,-224.99,0.00019452,3]
[329114108,1718116234756,-398.94,0.0001963,2]
[329114110,1718116234768,-708.54,0.00019864,2]
[329114112,1718116234784,-187.6090952,0.00020835,2]
[329114114,1718116234800,-6962.1,0.00020836,2]
[329114115,1718116234811,-200.0,0.00021267,2]
[329114116,1718116234822,-211.6109,0.00021273,2]
[329114117,1718116234834,-2334.16,0.00021332,2]
[329114118,1718116234847,-2926.50280796,0.00021373,2]
[329114122,1718116240026,-3996.27564704,0.00021373,2]
[329114124,1718116240048,-2747.711545,0.00021373,2]
[329114125,1718116240059,-509.8,0.00021387,2]
[329114126,1718116240083,-500.0,0.00021405,2]
[329114127,1718116240098,-8116.21,0.00021413,2]
[329114128,1718116240109,-235.01,0.00021435,2]
[329114129,1718116240119,-250.0,0.00021462,2]
[329114130,1718116240130,-297.17,0.00021479,2]
[329114131,1718116240141,-1104.77,0.0002148,2]
[329114132,1718116240152,-1903.7,0.00021527,2]
[329114133,1718116240165,-795.04,0.00021535,2]
[329114134,1718116240177,-372.1,0.0002154,2]
[329114135,1718116240188,-200.0,0.00021555,2]
[329114136,1718116240200,-1000.0,0.00021567,2]
[329114137,1718116240214,-372.1,0.00021599,2]
[329114138,1718116240225,-372.1,0.00021658,2]
[329114139,1718116240236,-372.1,0.00021717,2]
[329114140,1718116240258,-372.1,0.00021777,2]
[329114141,1718116240272,-372.1,0.00021836,2]
[329114142,1718116240295,-398.94,0.00021894,2]
[329114143,1718116240314,-372.1,0.00021895,2]
[329114144,1718116240328,-153.67,0.00021918,2]
[329114145,1718116240358,-372.1,0.00021954,2]
[329114146,1718116240372,-170.73,0.00021993,2]
[329114147,1718116240392,-372.1,0.00022013,2]
[329114148,1718116240404,-372.1,0.00022072,2]
[329114149,1718116240414,-372.1,0.00022131,2]
[329114150,1718116240425,-372.1,0.0002219,2]
[329114151,1718116240442,-372.1,0.00022249,2]
[329114152,1718116240454,-2002.0,0.000223,5]
[329114153,1718116240474,-372.1,0.00022308,2]
[329114154,1718116240486,-372.1,0.00022367,2]
[329114155,1718116240501,-372.1,0.00022426,2]
[329114156,1718116240523,-372.1,0.00022485,2]
[329114157,1718116240533,-372.1,0.00022544,2]
[329114158,1718116240546,-500.0,0.00022602,2]
[329114159,1718116240558,-372.1,0.00022603,2]
[329114160,1718116240569,-372.1,0.00022663,2]
[329114161,1718116240584,-1066.0,0.00023479,2]
[329114162,1718116240605,-15176.784,0.00023479,2]
[329114163,1718116240626,-1573.0,0.00023479,2]
[329114164,1718116240655,-1194.0,0.00023479,2]
[329114165,1718116240679,-1000.0,0.000235,4]
[329114166,1718116240699,-1000.0,0.000235,4]
[329114167,1718116240722,-1000.0,0.000235,4]
[329114168,1718116240744,-1000.0,0.000235,4]
[329114169,1718116240770,-1000.0,0.000235,4]
[329114170,1718116240794,-500.0,0.00023698,2]
[329114171,1718116240817,-1000.0,0.000237,3]
[329114172,1718116240843,-1000.0,0.000237,3]
[329114173,1718116240854,-1000.0,0.000237,3]
[329114174,1718116240865,-1000.0,0.00024,5]
[329114175,1718116240880,-1000.0,0.00024,5]
[329114176,1718116240895,-398.94,0.00024158,2]
[329114177,1718116240906,-1000.0,0.00024262,2]
[329114178,1718116240919,-1903.7,0.00024267,2]
[329114179,1718116240936,-400.0,0.000243,8]
[329114180,1718116240950,-155.36,0.00024384,2]
[329114181,1718116241011,-158.65,0.00024384,2]
[329114182,1718116241035,-1072.4953,0.000244,2]
[329114183,1718116241047,-900.0,0.000244,8]
[329114184,1718116241065,-2126.05033,0.0002441,2]
[329114185,1718116241076,-1000.0,0.00024457,2]
[329114186,1718116241090,-2500.0,0.00024457,2]
[329114188,1718116241102,-369.32927208,0.00024457,2]
[329114190,1718116241115,-324.19129241,0.00024457,2]
[329114192,1718116241129,-500.0,0.00024459,2]
[329114193,1718116241142,-200.0,0.00024459,2]
[329114195,1718116241154,-200.0,0.0002446,2]
[329114197,1718116241167,-1000.0,0.0002446,2]
[329114199,1718116241179,-500.0,0.0002446,2]
[329114201,1718116241190,-500.0,0.0002446,2]
[329114202,1718116241201,-200.0,0.0002446,2]
[329114204,1718116241212,-1300.0,0.000245,8]
[329114206,1718116241223,-4739.88321333,0.00024555,2]
[329114208,1718116241234,-206.0593275,0.00024555,2]
[329114209,1718116241248,-1625.52061624,0.00024555,2]
[329114210,1718116241262,-500.0,0.00024556,2]
[329114211,1718116241275,-220.6686496,0.00024556,2]
[329114212,1718116241287,-385.40073093,0.00024556,2]
[329114213,1718116241298,-207.56331146,0.00024556,2]
[329114214,1718116241313,-1152.31990522,0.00024556,10]
[329114215,1718116241324,-7500.0,0.00024556,2]
[329114216,1718116241342,-500.0,0.00024557,2]
[329114217,1718116241357,-54594.67288162,0.00024557,2]
[329114218,1718116241770,-150.357,0.00022297,2]
[329114219,1718116241780,-27814.29822356,0.00024557,2]
[329114220,1718116241792,-300.67611,0.00024557,2]
[329114221,1718116241805,-706.28,0.00024557,2]
[329114223,1718116242992,-305.88500009,0.00024557,2]
[329114324,1718116245263,-394.32513033,0.00024557,2]
[329114325,1718116245277,-1157.10933492,0.00024557,2]
[329114327,1718116246063,-14726.75331948,0.00024557,2]
[329114328,1718116246075,-5794.98559826,0.00024557,2]
[329114329,1718116246089,-5231.21225213,0.00024557,2]
[329114330,1718116248143,-873.88559492,0.00024557,2]
[329114331,1718116248156,-1222.58142477,0.00024557,2]
[329114332,1718116248891,-2558.34417606,0.00024557,2]
[329114333,1718116249126,-1266.0,0.00024557,2]
[329114334,1718116360379,300.01887556,0.00028,90]
[329114339,1718116696052,944.04711276,0.00028,90]
[329114345,1718117231162,-455.47216685,0.00012603,2]
[329114346,1718117235159,-4089.58284417,0.00012603,2]
[329114347,1718117239144,-168.38872861,0.00012603,2]
[329114348,1718117244114,-2880.00889384,0.00012603,2]
[329114349,1718117244138,-146.52786697,0.00012701,2]
[329114351,1718117279974,-291.76506474,0.0002739,30]
[329114352,1718117280091,-899.99999996,0.00027828,31]
[329114353,1718117280123,-500.0,0.00028,30]
[329114354,1718117280150,-500.0,0.00028,30]
[329114355,1718117280179,-500.0,0.00028,30]
[329114356,1718117280218,-500.0,0.00028,30]
[329114357,1718117280275,-500.0,0.00028,30]
[329114358,1718117280329,-500.0,0.00028,30]
[329114359,1718117280403,-500.0,0.00028,30]
[329114360,1718117280435,-500.0,0.00028,30]
[329114361,1718117280479,-215.81312041,0.00028,30]
[329114362,1718117280512,-156.88815676,0.00028055,30]
[329114363,1718117280552,-156.88815676,0.00028274,30]
[329114364,1718117280598,-156.88815676,0.00028466,30]
[329114365,1718117280651,-156.88815676,0.00028685,30]
[329114366,1718117280695,-156.88815676,0.00028877,30]
[329114367,1718117280731,-165.07057328,0.00028877,30]
[329114368,1718117280762,-2000.0,0.00029,30]
[329114369,1718117280803,-1800.0,0.00029,30]
[329114370,1718117280839,-156.88815676,0.00029096,30]
[329114371,1718117280872,-156.88815676,0.00029288,30]
[329114372,1718117280905,-800.0,0.00029492,31]
[329114373,1718117280939,-1832908.96374498,0.00029498,30]
[329114374,1718117280974,-156.88815676,0.00029507,30]
[329114375,1718117281011,-2000.0,0.00029589,30]
[329114376,1718117281044,-156.88815676,0.00029726,30]
[329114377,1718117281075,-460.05370901,0.000298,30]
[329114378,1718117281102,-11912.979883,0.000298,30]
[329114379,1718117281134,-2000.0,0.00029863,30]
[329114380,1718117281177,-200.0,0.000299,31]
[329114381,1718117281207,-353.44891853,0.0003,30]
[329114382,1718117281240,-2166.65674835,0.0003,30]
[329114383,1718117281280,-253.74911631,0.0003,30]
[329114384,1718117281308,-400.73658269,0.0003,30]
[329114385,1718117281342,-200.0,0.0003,30]
[329114386,1718117281417,-218.11086445,0.0003,120]
[329114387,1718117281448,-440.07662596,0.0003,30]
[329114388,1718117281500,-500.0,0.0003,120]
[329114389,1718117281536,-750.0,0.0003,120]
[329114390,1718117281570,-250.96943323,0.0003,30]